fUST/lending_fUST_20250310
["ID","MTS","AMOUNT","RATE_DAILY","PERIOD"]
[355791869,1741563053925,-500.0,0.0005726,120]
[355791870,1741563053938,-500.0,0.0005726,120]
[355791871,1741563053951,-645.4,0.0005726,120]
[355791872,1741563053965,-658.97,0.0005726,120]
[355791873,1741563053978,-500.0,0.0005726,120]
[355791874,1741563053991,-10906.45,0.0005726,2]
[355791875,1741563054004,-500.0,0.0005726,120]
[355791876,1741563054017,-160.0,0.000575,120]
[355791877,1741563054030,-559.0265757,0.00057513,60]
[355791878,1741563054044,-500.0,0.00057534,120]
[355791879,1741563054056,-912.61,0.00057534,120]
[355791880,1741563054069,-500.0,0.00057534,120]
[355791881,1741563054081,-500.0,0.00057534,120]
[355791882,1741563054094,-500.0,0.00057534,120]
[355791883,1741563054107,-824.24,0.00057534,120]
[355791884,1741563054119,-500.0,0.00057534,120]
[355791885,1741563054131,-500.0,0.00057534,120]
[355791886,1741563054146,-604.85,0.00057534,120]
[355791887,1741563054159,-489.93711619,0.00057534,120]
[355791888,1741563054171,-833.78,0.00057534,120]
[355791889,1741563054184,-500.0,0.00057534,120]
[355791890,1741563054196,-999.0,0.00057534,120]
[355791891,1741563054209,-271.19078842,0.00057534,120]
[355791892,1741563054221,-16974.88,0.00057534,7]
[355791893,1741563054234,-500.0,0.00057534,120]
[355791894,1741563054247,-3067.4,0.00057534,120]
[355791895,1741563054260,-500.0,0.00057534,120]
[355791896,1741563054273,-500.0,0.00057534,120]
[355791897,1741563054285,-500.0,0.00057534,120]
[355791898,1741563054297,-500.0,0.00057534,120]
[355791899,1741563054309,-792.17,0.00057534,60]
[355791900,1741563054321,-500.0,0.00057534,120]
[355791901,1741563054333,-500.0,0.00057534,120]
[355791902,1741563054348,-500.0,0.00057534,120]
[355791903,1741563054360,-500.0,0.00057534,120]
[355791904,1741563054374,-500.0,0.00057534,120]
[355791905,1741563054389,-500.0,0.00057534,120]
[355791906,1741563054402,-500.0,0.00057534,120]
[355791907,1741563054415,-500.0,0.00057534,120]
[355791908,1741563054430,-345.61185506,0.00057534,120]
[355791909,1741563054442,-831.83,0.00057534,120]
[355791910,1741563054455,-534.13,0.00057534,120]
[355791911,1741563054468,-561.34,0.00057534,120]
[355791912,1741563054481,-1126.08,0.00057534,120]
[355791913,1741563054494,-691.45,0.00057534,120]
[355791914,1741563054506,-528.66,0.00057534,120]
[355791915,1741563054519,-500.0,0.00057534,120]
[355791916,1741563054532,-500.0,0.00057534,120]
[355791917,1741563054544,-517.86890622,0.00057534,120]
[355791918,1741563054557,-1300.1,0.00057534,120]
[355791919,1741563054569,-500.0,0.00057534,120]
[355791920,1741563054581,-500.0,0.00057534,120]
[355791921,1741563054594,-500.0,0.00057534,120]
[355791922,1741563054607,-500.0,0.00057534,120]
[355791923,1741563054620,-645.4,0.00057534,120]
[355791924,1741563054632,-658.97,0.00057534,120]
[355791925,1741563054646,-500.0,0.00057534,120]
[355791926,1741563054841,-10906.45,0.00057534,2]
[355791927,1741563054852,-500.0,0.00057534,120]
[355791928,1741563054863,-676.982894,0.00057554,2]
[355791929,1741563054873,-5463.28,0.000576,30]
[355791930,1741563054884,-246.72,0.000576,30]
[355791931,1741563054896,-4890.54,0.000576,30]
[355791932,1741563054906,-500.0,0.00057808,120]
[355791933,1741563054917,-912.61,0.00057808,120]
[355791934,1741563054927,-500.0,0.00057808,120]
[355791935,1741563054938,-500.0,0.00057808,120]
[355791936,1741563054947,-500.0,0.00057808,120]
[355791937,1741563054957,-824.24,0.00057808,120]
[355791938,1741563054968,-500.0,0.00057808,120]
[355791939,1741563054978,-500.0,0.00057808,120]
[355791940,1741563054988,-604.85,0.00057808,120]
[355791941,1741563054997,-833.78,0.00057808,120]
[355791942,1741563055007,-500.0,0.00057808,120]
[355791943,1741563055017,-16974.88,0.00057808,7]
[355791944,1741563055027,-500.0,0.00057808,120]
[355791945,1741563055038,-3067.4,0.00057808,120]
[355791946,1741563055047,-500.0,0.00057808,120]
[355791947,1741563055057,-500.0,0.00057808,120]
[355791948,1741563055067,-500.0,0.00057808,120]
[355791949,1741563055077,-500.0,0.00057808,120]
[355791950,1741563055088,-792.17,0.00057808,60]
[355791951,1741563055098,-831.83,0.00057808,120]
[355791952,1741563055108,-534.13,0.00057808,120]
[355791953,1741563055118,-561.34,0.00057808,120]
[355791954,1741563055127,-1126.08,0.00057808,120]
[355791955,1741563055140,-691.45,0.00057808,120]
[355791956,1741563055151,-528.66,0.00057808,120]
[355791957,1741563055161,-500.0,0.00057808,120]
[355791958,1741563055171,-500.0,0.00057808,120]
[355791959,1741563055180,-1300.1,0.00057808,120]
[355791960,1741563055190,-500.0,0.00057808,120]
[355791961,1741563055200,-500.0,0.00057808,120]
[355791962,1741563055210,-500.0,0.00057808,120]
[355791963,1741563055219,-500.0,0.00057808,120]
[355791964,1741563055229,-645.4,0.00057808,120]
[355791965,1741563055239,-658.97,0.00057808,120]
[355791966,1741563055249,-500.0,0.00057808,120]
[355791967,1741563055259,-10906.45,0.00057808,2]
[355791968,1741563055269,-500.0,0.00057808,120]
[355791969,1741563055280,-174.0,0.00058,120]
[355791970,1741563055290,-1751.0,0.00058,120]
[355791971,1741563055300,-457.0,0.00058,120]
[355791972,1741563055310,-162.39,0.00058,30]
[355791973,1741563055319,-505.0,0.00058,120]
[355791974,1741563055329,-500.0,0.00058,120]
[355791975,1741563055340,-6300.0,0.00058,120]
[355791976,1741563055353,-500.0,0.00058082,120]
[355791977,1741563055363,-912.61,0.00058082,120]
[355791978,1741563055374,-441.75265646,0.00058082,120]
[355791979,1741563055387,-500.0,0.00058082,120]
[355791980,1741563055396,-824.24,0.00058082,120]
[355791981,1741563055405,-500.0,0.00058082,120]
[355791982,1741563055415,-500.0,0.00058082,120]
[355791983,1741563055427,-604.85,0.00058082,120]
[355791984,1741563055438,-833.78,0.00058082,120]
[355791985,1741563055448,-500.0,0.00058082,120]
[355791986,1741563055458,-16974.88,0.00058082,7]
[355791987,1741563055468,-201.59999995,0.00058082,120]
[355791988,1741563055479,-3067.4,0.00058082,120]
[355791989,1741563055489,-500.0,0.00058082,120]
[355791990,1741563055499,-388.55165914,0.00058082,120]
[355791991,1741563055509,-500.0,0.00058082,120]
[355791992,1741563055519,-500.0,0.00058082,120]
[355791993,1741563055529,-792.17,0.00058082,60]
[355791994,1741563055539,-831.83,0.00058082,120]
[355791995,1741563055548,-534.13,0.00058082,120]
[355791996,1741563055558,-561.34,0.00058082,120]
[355791997,1741563055568,-1126.08,0.00058082,120]
[355791998,1741563055578,-691.45,0.00058082,120]
[355791999,1741563055588,-528.66,0.00058082,120]
[355792000,1741563055599,-500.0,0.00058082,120]
[355792001,1741563055609,-500.0,0.00058082,120]
[355792002,1741563055619,-1300.1,0.00058082,120]
[355792003,1741563055629,-640.02761875,0.00058082,120]
[355792004,1741563055641,-500.0,0.00058082,120]
[355792005,1741563055651,-500.0,0.00058082,120]
[355792006,1741563055661,-500.0,0.00058082,120]
[355792007,1741563055670,-645.4,0.00058082,120]
[355792008,1741563055680,-658.97,0.00058082,120]
[355792009,1741563055690,-500.0,0.00058082,120]
[355792010,1741563055700,-10906.45,0.00058082,2]
[355792011,1741563055709,-500.0,0.00058082,120]
[355792012,1741563055720,-500.0,0.00058356,120]
[355792013,1741563055731,-912.61,0.00058356,120]
[355792014,1741563055741,-500.0,0.00058356,120]
[355792015,1741563055750,-824.24,0.00058356,120]
[355792016,1741563055760,-500.0,0.00058356,120]
[355792017,1741563055770,-500.0,0.00058356,120]
[355792018,1741563055780,-604.85,0.00058356,120]
[355792019,1741563055790,-833.78,0.00058356,120]
[355792020,1741563055800,-500.0,0.00058356,120]
[355792021,1741563055810,-16974.88,0.00058356,7]
[355792022,1741563055820,-3067.4,0.00058356,120]
[355792023,1741563055830,-500.0,0.00058356,120]
[355792024,1741563055839,-500.0,0.00058356,120]
[355792025,1741563055849,-186.74,0.00058356,120]
[355792026,1741563055859,-792.17,0.00058356,60]
[355792027,1741563055868,-831.83,0.00058356,120]
[355792028,1741563055878,-534.13,0.00058356,120]
[355792029,1741563055889,-561.34,0.00058356,120]
[355792030,1741563055899,-1126.08,0.00058356,120]
[355792031,1741563055909,-691.45,0.00058356,120]
[355792032,1741563055920,-528.66,0.00058356,120]
[355792033,1741563055930,-156.57459632,0.00058356,120]
[355792034,1741563055939,-500.0,0.00058356,120]
[355792035,1741563055949,-1300.1,0.00058356,120]
[355792036,1741563055958,-500.0,0.00058356,120]
[355792037,1741563055969,-500.0,0.00058356,120]
[355792038,1741563055979,-500.0,0.00058356,120]
[355792039,1741563055989,-645.4,0.00058356,120]
[355792040,1741563055998,-658.97,0.00058356,120]
[355792041,1741563056009,-500.0,0.00058356,120]
[355792042,1741563056019,-10906.45,0.00058356,2]
[355792043,1741563056029,-500.0,0.00058356,120]
[355792044,1741563056039,-394.28,0.000584,30]
[355792045,1741563056049,-560.91,0.000584,30]
[355792046,1741563056058,-163.46,0.000584,30]
[355792047,1741563056068,-5000.0,0.000585,120]
[355792048,1741563056077,-6097.2612,0.000586,120]
[355792049,1741563056087,-500.0,0.0005863,120]
[355792050,1741563056097,-564.023141,0.0005863,120]
[355792051,1741563056107,-500.0,0.0005863,120]
[355792052,1741563056118,-912.61,0.0005863,120]
[355792053,1741563056128,-282.88420022,0.0005863,120]
[355792054,1741563056140,-824.24,0.0005863,120]
[355792055,1741563056151,-500.0,0.0005863,120]
[355792056,1741563056160,-500.0,0.0005863,120]
[355792057,1741563056170,-604.85,0.0005863,120]
[355792058,1741563056180,-833.78,0.0005863,120]
[355792059,1741563056191,-500.0,0.0005863,120]
[355792060,1741563056201,-999.0,0.0005863,120]
[355792061,1741563056211,-16974.88,0.0005863,7]
[355792062,1741563056221,-3067.4,0.0005863,120]
[355792063,1741563056231,-500.0,0.0005863,120]
[355792064,1741563056241,-500.0,0.0005863,120]
[355792065,1741563056251,-792.17,0.0005863,60]
[355792066,1741563056261,-831.83,0.0005863,120]
[355792067,1741563056270,-534.13,0.0005863,120]
[355792068,1741563056280,-561.34,0.0005863,120]
[355792069,1741563056291,-1126.08,0.0005863,120]
[355792070,1741563056301,-691.45,0.0005863,120]
[355792071,1741563056311,-528.66,0.0005863,120]
[355792072,1741563056321,-500.0,0.0005863,120]
[355792073,1741563056331,-1300.1,0.0005863,120]
[355792074,1741563056341,-500.0,0.0005863,120]
[355792075,1741563056355,-500.0,0.0005863,120]
[355792076,1741563056366,-390.08584033,0.0005863,120]
[355792077,1741563056375,-645.4,0.0005863,120]
[355792078,1741563056386,-658.97,0.0005863,120]
[355792079,1741563056396,-189.97991605,0.0005863,120]
[355792080,1741563056405,-10906.45,0.0005863,2]
[355792081,1741563056415,-20000.0,0.000587,120]
[355792082,1741563056425,-159.63,0.000587,60]
[355792083,1741563056434,-20000.0,0.000588,120]
[355792084,1741563056445,-20000.0,0.000589,120]
[355792085,1741563056454,-500.0,0.00058904,120]
[355792086,1741563056464,-912.61,0.00058904,120]
[355792087,1741563056473,-824.24,0.00058904,120]
[355792088,1741563056483,-500.0,0.00058904,120]
[355792089,1741563056492,-500.0,0.00058904,120]
[355792090,1741563056502,-604.85,0.00058904,120]
[355792091,1741563056511,-833.78,0.00058904,120]
[355792092,1741563056520,-500.0,0.00058904,120]
[355792093,1741563056531,-16974.88,0.00058904,7]
[355792094,1741563056541,-3067.4,0.00058904,120]
[355792095,1741563056551,-500.0,0.00058904,120]
[355792096,1741563056560,-455.89498525,0.00058904,120]
[355792097,1741563056569,-792.17,0.00058904,60]
[355792098,1741563056579,-831.83,0.00058904,120]
[355792099,1741563056589,-534.13,0.00058904,120]
[355792100,1741563056598,-561.34,0.00058904,120]
[355792101,1741563056608,-1126.08,0.00058904,120]
[355792102,1741563056618,-691.45,0.00058904,120]
[355792103,1741563056627,-528.66,0.00058904,120]
[355792104,1741563056637,-559.22409716,0.00058904,120]
[355792105,1741563056647,-1300.1,0.00058904,120]
[355792106,1741563056656,-500.0,0.00058904,120]
[355792107,1741563056666,-500.0,0.00058904,120]
[355792108,1741563056676,-645.4,0.00058904,120]
[355792109,1741563056685,-658.97,0.00058904,120]
[355792110,1741563056696,-10906.45,0.00058904,2]
[355792111,1741563056705,-421.432484,0.00059,30]
[355792112,1741563056715,-421.432484,0.00059,30]
[355792113,1741563056725,-151.0,0.00059,120]
[355792114,1741563056734,-151.0,0.00059,120]
[355792115,1741563056744,-31831.82708254,0.00059,30]
[355792116,1741563056753,-31831.82708254,0.00059,30]
[355792117,1741563056763,-30412.23481085,0.00059,30]
[355792118,1741563056772,-30412.23481085,0.00059,30]
[355792119,1741563056782,-20000.0,0.00059,120]
[355792120,1741563056791,-170522.45566948,0.00059,30]
[355792121,1741563056800,-170522.45566948,0.00059,30]
[355792122,1741563056810,-741.76182466,0.00059,30]
[355792123,1741563056819,-741.76182466,0.00059,30]
[355792124,1741563056829,-9861.86661804,0.00059,30]
[355792125,1741563056838,-9861.86661804,0.00059,30]
[355792126,1741563056848,-500.0,0.00059178,120]
[355792127,1741563056857,-912.61,0.00059178,120]
[355792128,1741563056866,-824.24,0.00059178,120]
[355792129,1741563056875,-315.41018508,0.00059178,120]
[355792130,1741563056885,-500.0,0.00059178,120]
[355792131,1741563056895,-604.85,0.00059178,120]
[355792132,1741563056905,-833.78,0.00059178,120]
[355792133,1741563056915,-500.0,0.00059178,120]
[355792134,1741563056925,-16974.88,0.00059178,7]
[355792135,1741563056936,-3067.4,0.00059178,120]
[355792136,1741563056946,-500.0,0.00059178,120]
[355792137,1741563056955,-792.17,0.00059178,60]
[355792138,1741563056965,-831.83,0.00059178,120]
[355792139,1741563056974,-534.13,0.00059178,120]
[355792140,1741563056984,-561.34,0.00059178,120]
[355792141,1741563056994,-1126.08,0.00059178,120]
[355792142,1741563057004,-691.45,0.00059178,120]
[355792143,1741563057014,-528.66,0.00059178,120]
[355792144,1741563057024,-1300.1,0.00059178,120]
[355792145,1741563057034,-500.0,0.00059178,120]
[355792146,1741563057043,-500.0,0.00059178,120]
[355792147,1741563057053,-645.4,0.00059178,120]
[355792148,1741563057062,-658.97,0.00059178,120]
[355792149,1741563057073,-10906.45,0.00059178,2]
[355792150,1741563057082,-421.432484,0.00059452,30]
[355792151,1741563057092,-421.432484,0.00059452,30]
[355792152,1741563057102,-151.0,0.00059452,120]
[355792153,1741563057111,-151.0,0.00059452,120]
[355792154,1741563057121,-500.0,0.00059452,120]
[355792155,1741563057130,-912.61,0.00059452,120]
[355792156,1741563057140,-824.24,0.00059452,120]
[355792157,1741563057150,-184.71739042,0.00059452,120]
[355792158,1741563057159,-604.85,0.00059452,120]
[355792159,1741563057169,-833.78,0.00059452,120]
[355792160,1741563057178,-500.0,0.00059452,120]
[355792161,1741563057189,-16974.88,0.00059452,7]
[355792162,1741563057199,-3067.4,0.00059452,120]
[355792163,1741563057209,-227.09889922,0.00059452,120]
[355792164,1741563057218,-792.17,0.00059452,60]
[355792165,1741563057228,-831.83,0.00059452,120]
[355792166,1741563057238,-534.13,0.00059452,120]
[355792167,1741563057248,-561.34,0.00059452,120]
[355792168,1741563057257,-1126.08,0.00059452,120]
[355792169,1741563057267,-691.45,0.00059452,120]
[355792170,1741563057276,-528.66,0.00059452,120]
[355792171,1741563057285,-1300.1,0.00059452,120]
[355792172,1741563057295,-500.0,0.00059452,120]
[355792173,1741563057305,-500.0,0.00059452,120]
[355792174,1741563057315,-645.4,0.00059452,120]
[355792175,1741563057324,-658.97,0.00059452,120]
[355792176,1741563057334,-10906.45,0.00059452,2]
[355792177,1741563057344,-500.0,0.00059726,120]
[355792178,1741563057357,-912.61,0.00059726,120]
[355792179,1741563057367,-824.24,0.00059726,120]
[355792180,1741563057377,-604.85,0.00059726,120]
[355792181,1741563057387,-833.78,0.00059726,120]
[355792182,1741563057396,-500.0,0.00059726,120]
[355792183,1741563057406,-999.0,0.00059726,120]
[355792184,1741563057416,-16974.88,0.00059726,7]
[355792185,1741563057427,-3067.4,0.00059726,120]
[355792186,1741563057438,-792.17,0.00059726,60]
[355792187,1741563057448,-831.83,0.00059726,120]
[355792188,1741563057458,-534.13,0.00059726,120]
[355792189,1741563057468,-561.34,0.00059726,120]
[355792190,1741563057478,-1126.08,0.00059726,120]
[355792191,1741563057488,-691.45,0.00059726,120]
[355792192,1741563057498,-528.66,0.00059726,120]
[355792193,1741563057509,-1300.1,0.00059726,120]
[355792194,1741563057519,-500.0,0.00059726,120]
[355792195,1741563057530,-645.4,0.00059726,120]
[355792196,1741563057540,-658.97,0.00059726,120]
[355792197,1741563057551,-10906.45,0.00059726,2]
[355792198,1741563057562,-500.0,0.00059999,120]
[355792199,1741563057572,-912.61,0.00059999,120]
[355792200,1741563057582,-824.24,0.00059999,120]
[355792201,1741563057592,-604.85,0.00059999,120]
[355792202,1741563057602,-833.78,0.00059999,120]
[355792203,1741563057612,-500.0,0.00059999,120]
[355792204,1741563057622,-16974.88,0.00059999,7]
[355792205,1741563057632,-3067.4,0.00059999,120]
[355792206,1741563057643,-792.17,0.00059999,60]
[355792207,1741563057652,-831.83,0.00059999,120]
[355792208,1741563057662,-534.13,0.00059999,120]
[355792209,1741563057814,-561.34,0.00059999,120]
[355792210,1741563057824,-1126.08,0.00059999,120]
[355792211,1741563057834,-691.45,0.00059999,120]
[355792212,1741563057844,-528.66,0.00059999,120]
[355792213,1741563057853,-1300.1,0.00059999,120]
[355792214,1741563057863,-500.0,0.00059999,120]
[355792215,1741563057873,-645.4,0.00059999,120]
[355792216,1741563057883,-658.97,0.00059999,120]
[355792217,1741563057893,-174.0,0.0006,120]
[355792218,1741563057903,-1751.0,0.0006,120]
[355792219,1741563057913,-457.0,0.0006,120]
[355792220,1741563057924,-505.0,0.0006,120]
[355792221,1741563057933,-160.0,0.0006,120]
[355792222,1741563057943,-7666.50175344,0.0006,120]
[355792223,1741563057953,-148830.58882282,0.0006,2]
[355792224,1741563057962,-787.0538135,0.00060119,60]
[355792225,1741563057971,-327.60002511,0.00060273,120]
[355792226,1741563057981,-912.61,0.00060273,120]
[355792227,1741563057991,-824.24,0.00060273,120]
[355792228,1741563058001,-604.85,0.00060273,120]
[355792229,1741563058011,-833.78,0.00060273,120]
[355792230,1741563058021,-500.0,0.00060273,120]
[355792231,1741563058031,-16974.88,0.00060273,7]
[355792232,1741563058041,-3067.4,0.00060273,120]
[355792233,1741563058051,-792.17,0.00060273,60]
[355792234,1741563058062,-831.83,0.00060273,120]
[355792235,1741563058073,-534.13,0.00060273,120]
[355792236,1741563058084,-561.34,0.00060273,120]
[355792237,1741563058095,-1126.08,0.00060273,120]
[355792238,1741563058105,-691.45,0.00060273,120]
[355792239,1741563058115,-528.66,0.00060273,120]
[355792240,1741563058125,-1300.1,0.00060273,120]
[355792241,1741563058136,-571.10829739,0.00060273,120]
[355792242,1741563058147,-645.4,0.00060273,120]
[355792243,1741563058156,-658.97,0.00060273,120]
[355792244,1741563058166,-421.432484,0.00060547,30]
[355792245,1741563058175,-421.432484,0.00060547,30]
[355792246,1741563058186,-151.0,0.00060547,120]
[355792247,1741563058196,-151.0,0.00060547,120]
[355792248,1741563058206,-912.61,0.00060547,120]
[355792249,1741563058216,-500.0,0.00060547,2]
[355792250,1741563058226,-824.24,0.00060547,120]
[355792251,1741563058236,-604.85,0.00060547,120]
[355792252,1741563058245,-833.78,0.00060547,120]
[355792253,1741563058255,-500.0,0.00060547,120]
[355792254,1741563058265,-16974.88,0.00060547,7]
[355792255,1741563058276,-3067.4,0.00060547,120]
[355792256,1741563058285,-792.17,0.00060547,60]
[355792257,1741563058295,-150.38,0.00060547,120]
[355792258,1741563058305,-831.83,0.00060547,120]
[355792259,1741563058315,-534.13,0.00060547,120]
[355792260,1741563058325,-561.34,0.00060547,120]
[355792261,1741563058335,-1126.08,0.00060547,120]
[355792262,1741563058349,-691.45,0.00060547,120]
[355792263,1741563058359,-528.66,0.00060547,120]
[355792264,1741563058368,-1300.1,0.00060547,120]
[355792265,1741563058378,-156.80924409,0.00060547,120]
[355792266,1741563058390,-645.4,0.00060547,120]
[355792267,1741563058400,-150.56,0.00060547,120]
[355792268,1741563058409,-500.0,0.00060547,120]
[355792269,1741563058419,-150.38,0.00060547,2]
[355792270,1741563058430,-150.38,0.00060547,120]
[355792271,1741563058440,-150.38,0.00060547,2]
[355792272,1741563058450,-500.0,0.00060547,120]
[355792273,1741563058459,-658.97,0.00060547,120]
[355792274,1741563058469,-500.0,0.00060574,2]
[355792275,1741563058479,-150.38,0.00060574,120]
[355792276,1741563058488,-696.14795553,0.00060574,120]
[355792277,1741563058498,-150.38,0.00060574,120]
[355792278,1741563058508,-500.0,0.00060574,120]
[355792279,1741563058518,-881.34,0.000606,30]
[355792280,1741563058528,-500.0,0.00060602,2]
[355792281,1741563058539,-150.38,0.00060602,120]
[355792282,1741563058548,-272.69745219,0.00060602,120]
[355792283,1741563058558,-500.0,0.00060602,120]
[355792284,1741563058567,-500.0,0.00060629,2]
[355792285,1741563058577,-152.25134365,0.00060629,120]
[355792286,1741563058587,-757.923373,0.00060629,120]
[355792287,1741563058597,-500.0,0.00060657,2]
[355792288,1741563058607,-500.0,0.00060684,2]
[355792289,1741563058617,-765.05321936,0.00060711,2]
[355792290,1741563058626,-150.0,0.00060807,15]
[355792291,1741563058636,-912.61,0.00060821,120]
[355792292,1741563058645,-824.24,0.00060821,120]
[355792293,1741563058655,-604.85,0.00060821,120]
[355792294,1741563058665,-833.78,0.00060821,120]
[355792295,1741563058676,-500.0,0.00060821,120]
[355792296,1741563058686,-999.0,0.00060821,120]
[355792297,1741563058696,-16974.88,0.00060821,7]
[355792298,1741563058706,-3067.4,0.00060821,120]
[355792299,1741563058716,-792.17,0.00060821,60]
[355792300,1741563058725,-831.83,0.00060821,120]
[355792301,1741563058735,-534.13,0.00060821,120]
[355792302,1741563058745,-561.34,0.00060821,120]
[355792303,1741563058755,-1126.08,0.00060821,120]
[355792304,1741563058765,-691.45,0.00060821,120]
[355792305,1741563058776,-528.66,0.00060821,120]
[355792306,1741563058785,-1300.1,0.00060821,120]
[355792307,1741563058795,-645.4,0.00060821,120]
[355792308,1741563058805,-658.97,0.00060821,120]
[355792309,1741563058815,-559.0265757,0.00060999,60]
[355792310,1741563058824,-559.0265757,0.00060999,60]
[355792311,1741563058834,-559.0265757,0.00060999,60]
[355792312,1741563058843,-559.0265757,0.00060999,60]
[355792313,1741563058852,-559.0265757,0.00060999,60]
[355792314,1741563058861,-1118.0531514,0.00060999,60]
[355792315,1741563058871,-150.0,0.00061,120]
[355792316,1741563058881,-912.7188744,0.00061095,120]
[355792317,1741563058890,-824.2891483,0.00061095,120]
[355792318,1741563058900,-604.87692984,0.00061095,120]
[355792319,1741563058909,-833.90378936,0.00061095,120]
[355792320,1741563058918,-331.007377,0.00061095,120]
[355792321,1741563058928,-16975.0073,0.00061095,7]
[355792322,1741563058938,-3067.40526076,0.00061095,120]
[355792323,1741563058947,-792.2051249,0.00061095,60]
[355792324,1741563058957,-832.00915982,0.00061095,120]
[355792325,1741563058967,-534.20520953,0.00061095,120]
[355792326,1741563058976,-561.40375785,0.00061095,120]
[355792327,1741563058986,-1126.27381181,0.00061095,120]
[355792328,1741563058995,-691.56221615,0.00061095,120]
[355792329,1741563059004,-528.73274937,0.00061095,120]
[355792330,1741563059014,-1300.12438114,0.00061095,120]
[355792331,1741563059023,-645.45712588,0.00061095,120]
[355792332,1741563059033,-659.1739171,0.00061095,120]
[355792333,1741563059042,-246.72,0.000611,30]
[355792334,1741563059052,-1500.0,0.00061471,14]
[355792335,1741563059061,-1507.27559161,0.00061471,15]
[355792336,1741563059070,-1500.0,0.00061471,15]
[355792337,1741563059080,-1500.0,0.00061471,14]
[355792338,1741563059090,-658.99584513,0.00061471,15]
[355792339,1741563059099,-500.0,0.00061471,15]
[355792340,1741563059109,-999.0,0.00061917,120]
[355792341,1741563059119,-174.0,0.00062,120]
[355792342,1741563059129,-1751.0,0.00062,120]
[355792343,1741563059139,-457.0,0.00062,120]
[355792344,1741563059148,-505.0,0.00062,120]
[355792345,1741563059158,-500.0,0.00062495,2]
[355792346,1741563059168,-160.0,0.000625,120]
[355792347,1741563059178,-999.0,0.00063013,120]
[355792348,1741563059188,-3464.91,0.000638,7]
[355792349,1741563059198,-174.0,0.00064,120]
[355792350,1741563059208,-1751.0,0.00064,120]
[355792351,1741563059217,-457.0,0.00064,120]
[355792352,1741563059226,-505.0,0.00064,120]
[355792353,1741563059236,-156.42529217,0.00064,120]
[355792354,1741563059245,-1118.83970774,0.00064109,120]
[355792355,1741563059255,-5000.0,0.000645,120]
[355792356,1741563059265,-160.0,0.00065,120]
[355792357,1741563059276,-1701.999999,0.00065,2]
[355792358,1741563059286,-174.0,0.00066,120]
[355792359,1741563059296,-1751.0,0.00066,120]
[355792360,1741563059306,-457.0,0.00066,120]
[355792361,1741563059316,-505.0,0.00066,120]
[355792362,1741563059325,-167.45,0.00066,30]
[355792363,1741563059335,-734.05,0.00066,30]
[355792364,1741563059345,-472.75,0.00066,30]
[355792365,1741563059358,-500.0,0.00066164,120]
[355792366,1741563059369,-150.0,0.00066286,15]
[355792367,1741563059378,-500.0,0.00066712,120]
[355792368,1741563059391,-500.0,0.0006726,120]